[Event "Titled Tuesday Blitz August 22 Late 2023"]
[White "Batsuren, Dambasuren"]
[Black "Grischuk, Alexander"]
[WhiteFideId "4902920"]
[BlackFideId "4126025"]
[WhiteElo "2810"]
[BlackElo "3006"]
[Result "0-1"]
[Round "6"]
[TimeControl "180+1"]
[Date "2023.08.22"]
[WhiteClock "0:00:00"]
[BlackClock "0:00:02"]
[Board "14"]

1. d4 {[%clk 0:03:00]}  Nf6 {[%clk 0:02:59]} 2. c4 {[%clk 0:03:01]}  e6 {[%clk 0:03:00]} 3. Nc3 {[%clk 0:03:01]}  Bb4 {[%clk 0:03:00]} 4. e3 {[%clk 0:03:01]}  O-O {[%clk 0:03:00]} 5. Bd3 {[%clk 0:03:00]}  d5 {[%clk 0:02:59]} 6. cxd5 {[%clk 0:02:55]}  exd5 {[%clk 0:02:59]} 7. Qc2 {[%clk 0:02:56]}  Re8 {[%clk 0:02:56]} 8. Ne2 {[%clk 0:02:48]}  Nbd7 {[%clk 0:02:16]} 9. a3 {[%clk 0:02:32]}  Bf8 {[%clk 0:02:16]} 10. O-O {[%clk 0:02:22]}  c6 {[%clk 0:02:12]} 11. f3 {[%clk 0:02:20]}  c5 {[%clk 0:02:12]} 12. Bd2 {[%clk 0:02:05]}  a6 {[%clk 0:02:11]} 13. Rae1 {[%clk 0:02:02]}  b5 {[%clk 0:02:09]} 14. Nf4 {[%clk 0:01:53]}  Bb7 {[%clk 0:02:09]} 15. Kh1 {[%clk 0:01:28]}  Rc8 {[%clk 0:02:06]} 16. dxc5 {[%clk 0:01:23]}  Bxc5 {[%clk 0:01:56]} 17. Qb1 {[%clk 0:01:23]}  Ne5 {[%clk 0:01:53]} 18. Nce2 {[%clk 0:01:04]}  Nc4 {[%clk 0:01:40]} 19. Bxc4 {[%clk 0:01:02]}  dxc4 {[%clk 0:01:40]} 20. Qc1 {[%clk 0:00:48]}  Nd7 {[%clk 0:01:30]} 21. e4 {[%clk 0:00:48]}  Ne5 {[%clk 0:01:29]} 22. Bc3 {[%clk 0:00:43]}  Qb6 {[%clk 0:01:10]} 23. Rd1 {[%clk 0:00:42]}  a5 {[%clk 0:01:05]} 24. Bd4 {[%clk 0:00:15]}  h6 {[%clk 0:00:52]} 25. Qe3 {[%clk 0:00:14]}  b4 {[%clk 0:00:47]} 26. axb4 {[%clk 0:00:14]}  axb4 {[%clk 0:00:48]} 27. Bxc5 {[%clk 0:00:14]}  Qxc5 {[%clk 0:00:48]} 28. Qxc5 {[%clk 0:00:14]}  Rxc5 {[%clk 0:00:49]} 29. Rd6 {[%clk 0:00:13]}  c3 {[%clk 0:00:29]} 30. Rb6 {[%clk 0:00:12]}  Bc6 {[%clk 0:00:23]} 31. bxc3 {[%clk 0:00:09]}  bxc3 {[%clk 0:00:23]} 32. Rc1 {[%clk 0:00:09]}  c2 {[%clk 0:00:14]} 33. Nd4 {[%clk 0:00:07]}  Rd8 {[%clk 0:00:09]} 34. Nfe2 {[%clk 0:00:05]}  Ba4 {[%clk 0:00:09]} 35. Rb4 {[%clk 0:00:02]}  Ra5 {[%clk 0:00:03]} 36. Nf4 {[%clk 0:00:01]}  g5 {[%clk 0:00:02]} 37. Nd5 {[%clk 0:00:02]}  Nd3 {[%clk 0:00:02]} 38. Nf6+ {[%clk 0:00:00]}  Kg7 {[%clk 0:00:02]} 0-1


[Site "https://www.chess.com"]

[Event "Titled Tuesday Blitz August 22 Late 2023"]
[White "Andreikin, Dmitry"]
[Black "Diaz Camallonga, Carles"]
[WhiteFideId "4158814"]
[BlackFideId "22235256"]
[WhiteElo "2986"]
[BlackElo "2808"]
[Result "1-0"]
[Round "6"]
[TimeControl "180+1"]
[Date "2023.08.22"]
[WhiteClock "0:01:04"]
[BlackClock "0:00:00"]
[Board "15"]

1. d4 {[%clk 0:03:00]}  d5 {[%clk 0:02:59]} 2. c4 {[%clk 0:02:59]}  e6 {[%clk 0:02:58]} 3. Nf3 {[%clk 0:02:58]}  Nf6 {[%clk 0:02:58]} 4. Bg5 {[%clk 0:02:59]}  dxc4 {[%clk 0:02:57]} 5. e4 {[%clk 0:02:58]}  c5 {[%clk 0:02:33]} 6. Nc3 {[%clk 0:02:56]}  cxd4 {[%clk 0:02:29]} 7. Qxd4 {[%clk 0:02:56]}  Qxd4 {[%clk 0:02:28]} 8. Nxd4 {[%clk 0:02:57]}  a6 {[%clk 0:02:28]} 9. Bxc4 {[%clk 0:02:56]}  b5 {[%clk 0:02:27]} 10. Be2 {[%clk 0:02:56]}  Bb7 {[%clk 0:02:27]} 11. f3 {[%clk 0:02:56]}  Nbd7 {[%clk 0:02:27]} 12. Nb3 {[%clk 0:02:51]}  Rc8 {[%clk 0:02:18]} 13. Rd1 {[%clk 0:02:44]}  Bb4 {[%clk 0:02:15]} 14. Bd2 {[%clk 0:02:34]}  Ne5 {[%clk 0:02:03]} 15. O-O {[%clk 0:02:26]}  O-O {[%clk 0:01:43]} 16. a3 {[%clk 0:02:26]}  Be7 {[%clk 0:01:39]} 17. Bf4 {[%clk 0:02:25]}  Nc4 {[%clk 0:01:31]} 18. Bxc4 {[%clk 0:02:22]}  bxc4 {[%clk 0:01:25]} 19. Nc1 {[%clk 0:02:17]}  Rfd8 {[%clk 0:01:13]} 20. Kf2 {[%clk 0:02:15]}  Nd7 {[%clk 0:01:09]} 21. Bd6 {[%clk 0:02:11]}  Bxd6 {[%clk 0:00:51]} 22. Rxd6 {[%clk 0:02:10]}  Nc5 {[%clk 0:00:51]} 23. Rxd8+ {[%clk 0:02:07]}  Rxd8 {[%clk 0:00:51]} 24. Ke3 {[%clk 0:02:02]}  Kf8 {[%clk 0:00:34]} 25. Rd1 {[%clk 0:02:01]}  Rc8 {[%clk 0:00:22]} 26. Rd6 {[%clk 0:02:00]}  Ke7 {[%clk 0:00:20]} 27. Rb6 {[%clk 0:02:00]}  Bc6 {[%clk 0:00:17]} 28. Rb4 {[%clk 0:01:52]}  Bb5 {[%clk 0:00:12]} 29. a4 {[%clk 0:01:47]}  Bd7 {[%clk 0:00:12]} 30. Rxc4 {[%clk 0:01:46]}  a5 {[%clk 0:00:06]} 31. Nd3 {[%clk 0:01:26]}  Nxd3 {[%clk 0:00:04]} 32. Rxc8 {[%clk 0:01:25]}  Bxc8 {[%clk 0:00:04]} 33. Kxd3 {[%clk 0:01:25]}  Kd6 {[%clk 0:00:04]} 34. Kc4 {[%clk 0:01:25]}  Ba6+ {[%clk 0:00:04]} 35. Nb5+ {[%clk 0:01:25]}  Kc6 {[%clk 0:00:04]} 36. e5 {[%clk 0:01:20]}  Kb6 {[%clk 0:00:04]} 37. b4 {[%clk 0:01:20]}  Bxb5+ {[%clk 0:00:01]} 38. axb5 {[%clk 0:01:19]}  a4 {[%clk 0:00:02]} 39. f4 {[%clk 0:01:08]}  f6 {[%clk 0:00:02]} 40. f5 {[%clk 0:01:05]}  exf5 {[%clk 0:00:01]} 41. e6 {[%clk 0:01:05]}  a3 {[%clk 0:00:01]} 42. Kb3 {[%clk 0:01:04]}  Kc7 {[%clk 0:00:00]} 43. b6+ {[%clk 0:01:04]} 1-0


[Site "https://www.chess.com"]

[Event "Titled Tuesday Blitz August 22 Late 2023"]
[White "ProphetReborn"]
[Black "Harikrishna, Pentala"]
[BlackFideId "5007003"]
[WhiteElo "2805"]
[BlackElo "2966"]
[Result "1-0"]
[Round "6"]
[TimeControl "180+1"]
[Date "2023.08.22"]
[WhiteClock "0:00:32"]
[BlackClock "0:00:00"]
[Board "16"]

1. d4 {[%clk 0:02:56]}  d5 {[%clk 0:02:58]} 2. c4 {[%clk 0:02:57]}  dxc4 {[%clk 0:02:59]} 3. Nf3 {[%clk 0:02:56]}  Nf6 {[%clk 0:02:58]} 4. e3 {[%clk 0:02:57]}  Bg4 {[%clk 0:02:57]} 5. Bxc4 {[%clk 0:02:57]}  e6 {[%clk 0:02:58]} 6. O-O {[%clk 0:02:58]}  Nbd7 {[%clk 0:02:57]} 7. Nc3 {[%clk 0:02:58]}  a6 {[%clk 0:02:56]} 8. h3 {[%clk 0:02:57]}  Bh5 {[%clk 0:02:56]} 9. b3 {[%clk 0:02:56]}  Bd6 {[%clk 0:02:55]} 10. Bb2 {[%clk 0:02:55]}  O-O {[%clk 0:02:55]} 11. Be2 {[%clk 0:02:55]}  c5 {[%clk 0:02:53]} 12. Rc1 {[%clk 0:02:53]}  Rc8 {[%clk 0:02:53]} 13. dxc5 {[%clk 0:02:45]}  Bxc5 {[%clk 0:02:47]} 14. Nd2 {[%clk 0:02:40]}  Bg6 {[%clk 0:02:42]} 15. Nc4 {[%clk 0:02:23]}  Be7 {[%clk 0:01:55]} 16. Bf3 {[%clk 0:01:41]}  Qc7 {[%clk 0:01:34]} 17. Na4 {[%clk 0:01:21]}  Qb8 {[%clk 0:01:11]} 18. Na5 {[%clk 0:01:20]}  Rxc1 {[%clk 0:01:01]} 19. Qxc1 {[%clk 0:01:21]}  Be4 {[%clk 0:00:51]} 20. Bxe4 {[%clk 0:01:17]}  Nxe4 {[%clk 0:00:51]} 21. Rd1 {[%clk 0:01:18]}  Rc8 {[%clk 0:00:42]} 22. Qa1 {[%clk 0:01:04]}  Nef6 {[%clk 0:00:39]} 23. Nc4 {[%clk 0:00:50]}  b5 {[%clk 0:00:33]} 24. Ne5 {[%clk 0:00:51]}  Nxe5 {[%clk 0:00:33]} 25. Bxe5 {[%clk 0:00:52]}  Qb7 {[%clk 0:00:29]} 26. Nc3 {[%clk 0:00:52]}  Qc6 {[%clk 0:00:21]} 27. Ne2 {[%clk 0:00:52]}  h6 {[%clk 0:00:19]} 28. Rc1 {[%clk 0:00:51]}  Qd7 {[%clk 0:00:18]} 29. Rxc8+ {[%clk 0:00:52]}  Qxc8 {[%clk 0:00:19]} 30. Qc3 {[%clk 0:00:53]}  Qxc3 {[%clk 0:00:18]} 31. Nxc3 {[%clk 0:00:53]}  Nd7 {[%clk 0:00:19]} 32. Bc7 {[%clk 0:00:50]}  Bb4 {[%clk 0:00:16]} 33. Ne4 {[%clk 0:00:50]}  f5 {[%clk 0:00:16]} 34. Nd6 {[%clk 0:00:49]}  Bxd6 {[%clk 0:00:16]} 35. Bxd6 {[%clk 0:00:50]}  Kf7 {[%clk 0:00:14]} 36. Kf1 {[%clk 0:00:50]}  e5 {[%clk 0:00:15]} 37. Ke2 {[%clk 0:00:50]}  Ke6 {[%clk 0:00:15]} 38. Bb4 {[%clk 0:00:51]}  e4 {[%clk 0:00:15]} 39. Bc3 {[%clk 0:00:51]}  g6 {[%clk 0:00:15]} 40. Bd4 {[%clk 0:00:51]}  h5 {[%clk 0:00:15]} 41. Kd2 {[%clk 0:00:51]}  Nb8 {[%clk 0:00:15]} 42. Kc3 {[%clk 0:00:51]}  Nc6 {[%clk 0:00:15]} 43. Bc5 {[%clk 0:00:49]}  Kd5 {[%clk 0:00:15]} 44. Bf8 {[%clk 0:00:49]}  Ne5 {[%clk 0:00:15]} 45. Kb4 {[%clk 0:00:45]}  Kc6 {[%clk 0:00:13]} 46. Kc3 {[%clk 0:00:42]}  Kd5 {[%clk 0:00:14]} 47. Kb4 {[%clk 0:00:41]}  Nd3+ {[%clk 0:00:14]} 48. Ka5 {[%clk 0:00:41]}  Nxf2 {[%clk 0:00:14]} 49. Kxa6 {[%clk 0:00:42]}  Kc6 {[%clk 0:00:14]} 50. b4 {[%clk 0:00:32]}  Nd1 {[%clk 0:00:13]} 51. a4 {[%clk 0:00:32]}  bxa4 {[%clk 0:00:12]} 52. b5+ {[%clk 0:00:32]}  Kd7 {[%clk 0:00:08]} 53. b6 {[%clk 0:00:32]}  Nc3 {[%clk 0:00:03]} 54. b7 {[%clk 0:00:32]}  a3 {[%clk 0:00:03]} 55. b8=Q {[%clk 0:00:31]}  a2 {[%clk 0:00:04]} 56. Qd6+ {[%clk 0:00:31]}  Kc8 {[%clk 0:00:00]} 57. Qc6+ {[%clk 0:00:32]} 1-0


[Site "https://www.chess.com"]

[Event "Titled Tuesday Blitz August 22 Late 2023"]
[White "Zhigalko, Sergei"]
[Black "Kushko, Dmitriy"]
[WhiteFideId "13502956"]
[BlackFideId "14162261"]
[WhiteElo "2955"]
[BlackElo "2766"]
[Result "1-0"]
[Round "6"]
[TimeControl "180+1"]
[Date "2023.08.22"]
[WhiteClock "0:00:28"]
[BlackClock "0:00:10"]
[Board "18"]

1. e4 {[%clk 0:03:00]}  g6 {[%clk 0:03:00]} 2. d4 {[%clk 0:03:01]}  Bg7 {[%clk 0:03:00]} 3. Nc3 {[%clk 0:03:00]}  d6 {[%clk 0:03:00]} 4. Nf3 {[%clk 0:03:00]}  a6 {[%clk 0:02:59]} 5. Be3 {[%clk 0:03:00]}  b5 {[%clk 0:02:59]} 6. a4 {[%clk 0:03:00]}  b4 {[%clk 0:02:59]} 7. Ne2 {[%clk 0:03:01]}  Bb7 {[%clk 0:02:57]} 8. Ng3 {[%clk 0:03:01]}  Nd7 {[%clk 0:02:57]} 9. a5 {[%clk 0:02:59]}  Ngf6 {[%clk 0:02:45]} 10. Bd3 {[%clk 0:02:59]}  Ng4 {[%clk 0:02:39]} 11. Bd2 {[%clk 0:02:58]}  c5 {[%clk 0:02:38]} 12. c3 {[%clk 0:02:58]}  O-O {[%clk 0:02:29]} 13. O-O {[%clk 0:02:57]}  Qc7 {[%clk 0:02:18]} 14. h3 {[%clk 0:02:56]}  bxc3 {[%clk 0:02:14]} 15. bxc3 {[%clk 0:02:55]}  Ngf6 {[%clk 0:02:15]} 16. Re1 {[%clk 0:02:55]}  Rfc8 {[%clk 0:01:19]} 17. Qe2 {[%clk 0:02:44]}  cxd4 {[%clk 0:01:14]} 18. cxd4 {[%clk 0:02:43]}  e5 {[%clk 0:01:14]} 19. Rec1 {[%clk 0:02:36]}  Qd8 {[%clk 0:01:14]} 20. Rab1 {[%clk 0:02:11]}  Rxc1+ {[%clk 0:01:11]} 21. Bxc1 {[%clk 0:02:12]}  Qc7 {[%clk 0:01:03]} 22. dxe5 {[%clk 0:01:40]}  Nxe5 {[%clk 0:01:02]} 23. Nxe5 {[%clk 0:01:34]}  dxe5 {[%clk 0:01:03]} 24. Be3 {[%clk 0:01:28]}  Nd7 {[%clk 0:01:01]} 25. Bc4 {[%clk 0:01:23]}  Nf8 {[%clk 0:00:42]} 26. Qa2 {[%clk 0:01:09]}  Bc6 {[%clk 0:00:35]} 27. Rc1 {[%clk 0:01:07]}  Qd7 {[%clk 0:00:33]} 28. Bxf7+ {[%clk 0:01:04]}  Qxf7 {[%clk 0:00:26]} 29. Qxf7+ {[%clk 0:01:05]}  Kxf7 {[%clk 0:00:26]} 30. Rxc6 {[%clk 0:01:05]}  Ne6 {[%clk 0:00:27]} 31. Ne2 {[%clk 0:00:57]}  Bf6 {[%clk 0:00:25]} 32. Nc3 {[%clk 0:00:51]}  Nd4 {[%clk 0:00:23]} 33. Rc7+ {[%clk 0:00:44]}  Ke6 {[%clk 0:00:21]} 34. Rxh7 {[%clk 0:00:39]}  Bd8 {[%clk 0:00:14]} 35. Rh8 {[%clk 0:00:34]}  Rc8 {[%clk 0:00:13]} 36. Nd5 {[%clk 0:00:28]}  Rc1+ {[%clk 0:00:10]} 37. Bxc1 {[%clk 0:00:28]} 1-0


[Site "https://www.chess.com"]

[Event "Titled Tuesday Blitz August 22 Late 2023"]
[White "Gorovets, Andrey"]
[Black "Kovalev, Vladislav"]
[WhiteFideId "13504037"]
[BlackFideId "13504398"]
[WhiteElo "2801"]
[BlackElo "2945"]
[Result "0-1"]
[Round "6"]
[TimeControl "180+1"]
[Date "2023.08.22"]
[WhiteClock "0:00:00"]
[BlackClock "0:00:05"]
[Board "19"]

1. d4 {[%clk 0:03:00]}  Nf6 {[%clk 0:03:00]} 2. c4 {[%clk 0:03:00]}  e6 {[%clk 0:03:00]} 3. Nf3 {[%clk 0:03:01]}  Bb4+ {[%clk 0:03:00]} 4. Nbd2 {[%clk 0:03:00]}  O-O {[%clk 0:02:59]} 5. e3 {[%clk 0:02:56]}  b6 {[%clk 0:02:58]} 6. a3 {[%clk 0:02:56]}  Bxd2+ {[%clk 0:02:53]} 7. Qxd2 {[%clk 0:02:57]}  Bb7 {[%clk 0:02:53]} 8. Be2 {[%clk 0:02:58]}  d6 {[%clk 0:02:53]} 9. O-O {[%clk 0:02:57]}  Nbd7 {[%clk 0:02:54]} 10. b4 {[%clk 0:02:57]}  Ne4 {[%clk 0:02:55]} 11. Qc2 {[%clk 0:02:57]}  f5 {[%clk 0:02:55]} 12. Bb2 {[%clk 0:02:57]}  Rf6 {[%clk 0:02:47]} 13. d5 {[%clk 0:02:43]}  Rh6 {[%clk 0:02:47]} 14. g3 {[%clk 0:02:32]}  Qe8 {[%clk 0:02:33]} 15. Nd4 {[%clk 0:02:23]}  Ne5 {[%clk 0:01:50]} 16. Nxe6 {[%clk 0:00:43]}  Rxe6 {[%clk 0:01:50]} 17. dxe6 {[%clk 0:00:43]}  Ng5 {[%clk 0:01:49]} 18. f3 {[%clk 0:00:43]}  Nexf3+ {[%clk 0:01:22]} 19. Bxf3 {[%clk 0:00:38]}  Nxf3+ {[%clk 0:00:54]} 20. Rxf3 {[%clk 0:00:34]}  Bxf3 {[%clk 0:00:55]} 21. Qxf5 {[%clk 0:00:26]}  Qh5 {[%clk 0:00:52]} 22. e4 {[%clk 0:00:21]}  Bg4 {[%clk 0:00:41]} 23. Qd5 {[%clk 0:00:12]}  Re8 {[%clk 0:00:38]} 24. Rf1 {[%clk 0:00:10]}  Rxe6 {[%clk 0:00:25]} 25. e5 {[%clk 0:00:08]}  dxe5 {[%clk 0:00:12]} 26. Qd8+ {[%clk 0:00:03]}  Qe8 {[%clk 0:00:11]} 27. Qxc7 {[%clk 0:00:04]}  Re7 {[%clk 0:00:12]} 28. Qd6 {[%clk 0:00:03]}  h6 {[%clk 0:00:11]} 29. Re1 {[%clk 0:00:03]}  Re6 {[%clk 0:00:07]} 30. Rxe5 {[%clk 0:00:02]}  Rxd6 {[%clk 0:00:04]} 31. Rxe8+ {[%clk 0:00:02]}  Kf7 {[%clk 0:00:05]} 32. Re1 {[%clk 0:00:01]}  Rd2 {[%clk 0:00:05]} 33. Be5 {[%clk 0:00:01]}  Bf3 {[%clk 0:00:03]} 34. Rf1 {[%clk 0:00:01]}  Rg2+ {[%clk 0:00:03]} 35. Kh1 {[%clk 0:00:01]}  Rf2+ {[%clk 0:00:04]} 36. Kg1 {[%clk 0:00:01]}  Rg2+ {[%clk 0:00:04]} 37. Kh1 {[%clk 0:00:00]}  Rxg3+ {[%clk 0:00:05]} 0-1


[Site "https://www.chess.com"]

[Event "Titled Tuesday Blitz August 22 Late 2023"]
[White "Drygalov, Sergey"]
[Black "Leiva, Gianmarco"]
[WhiteFideId "24171743"]
[BlackFideId "3804399"]
[WhiteElo "2944"]
[BlackElo "2754"]
[Result "1/2-1/2"]
[Round "6"]
[TimeControl "180+1"]
[Date "2023.08.22"]
[WhiteClock "0:00:24"]
[BlackClock "0:00:06"]
[Board "20"]

1. d4 {[%clk 0:03:00]}  Nf6 {[%clk 0:02:59]} 2. c4 {[%clk 0:03:01]}  e6 {[%clk 0:03:00]} 3. Nf3 {[%clk 0:03:01]}  d5 {[%clk 0:02:59]} 4. Nc3 {[%clk 0:03:02]}  a6 {[%clk 0:02:58]} 5. cxd5 {[%clk 0:03:02]}  exd5 {[%clk 0:02:59]} 6. Bg5 {[%clk 0:03:02]}  Be6 {[%clk 0:02:59]} 7. e3 {[%clk 0:03:03]}  Nbd7 {[%clk 0:02:58]} 8. Bd3 {[%clk 0:03:02]}  c6 {[%clk 0:02:58]} 9. Bf4 {[%clk 0:03:00]}  Bg4 {[%clk 0:02:45]} 10. h3 {[%clk 0:02:59]}  Bh5 {[%clk 0:02:44]} 11. g4 {[%clk 0:02:57]}  Bg6 {[%clk 0:02:44]} 12. Ne5 {[%clk 0:02:56]}  Nxe5 {[%clk 0:02:42]} 13. dxe5 {[%clk 0:02:56]}  Bxd3 {[%clk 0:02:32]} 14. Qxd3 {[%clk 0:02:55]}  Nd7 {[%clk 0:02:31]} 15. O-O-O {[%clk 0:02:53]}  Nc5 {[%clk 0:02:19]} 16. Qc2 {[%clk 0:02:49]}  Qa5 {[%clk 0:02:14]} 17. Kb1 {[%clk 0:02:49]}  Ne6 {[%clk 0:01:54]} 18. Bg3 {[%clk 0:02:48]}  Bb4 {[%clk 0:01:49]} 19. Ne2 {[%clk 0:02:48]}  Qc5 {[%clk 0:01:44]} 20. Qb3 {[%clk 0:02:42]}  Qb5 {[%clk 0:01:24]} 21. Nd4 {[%clk 0:02:32]}  Nxd4 {[%clk 0:01:20]} 22. exd4 {[%clk 0:02:33]}  Be7 {[%clk 0:01:18]} 23. f4 {[%clk 0:02:33]}  Qxb3 {[%clk 0:01:13]} 24. axb3 {[%clk 0:02:34]}  Kd7 {[%clk 0:01:11]} 25. Kc2 {[%clk 0:02:33]}  a5 {[%clk 0:01:10]} 26. f5 {[%clk 0:02:29]}  a4 {[%clk 0:01:09]} 27. Ra1 {[%clk 0:02:29]}  axb3+ {[%clk 0:00:52]} 28. Kxb3 {[%clk 0:02:30]}  Rxa1 {[%clk 0:00:51]} 29. Rxa1 {[%clk 0:02:31]}  h5 {[%clk 0:00:52]} 30. Ra7 {[%clk 0:02:22]}  Kc7 {[%clk 0:00:52]} 31. Be1 {[%clk 0:02:00]}  hxg4 {[%clk 0:00:47]} 32. hxg4 {[%clk 0:02:00]}  Rh3+ {[%clk 0:00:46]} 33. Ka2 {[%clk 0:01:59]}  Re3 {[%clk 0:00:34]} 34. Ra8 {[%clk 0:01:12]}  Rxe1 {[%clk 0:00:34]} 35. Rg8 {[%clk 0:01:13]}  Kd7 {[%clk 0:00:22]} 36. Rxg7 {[%clk 0:01:10]}  Ke8 {[%clk 0:00:23]} 37. g5 {[%clk 0:01:09]}  Rg1 {[%clk 0:00:15]} 38. g6 {[%clk 0:01:09]}  fxg6 {[%clk 0:00:09]} 39. f6 {[%clk 0:01:10]}  Bxf6 {[%clk 0:00:05]} 40. exf6 {[%clk 0:01:10]}  Rf1 {[%clk 0:00:05]} 41. Rxg6 {[%clk 0:01:10]}  Kf7 {[%clk 0:00:03]} 42. Rg7+ {[%clk 0:01:10]}  Kxf6 {[%clk 0:00:03]} 43. Rxb7 {[%clk 0:01:09]}  Rc1 {[%clk 0:00:03]} 44. b3 {[%clk 0:01:04]}  Kf5 {[%clk 0:00:03]} 45. Kb2 {[%clk 0:01:01]}  Rd1 {[%clk 0:00:03]} 46. Kc3 {[%clk 0:01:01]}  Rc1+ {[%clk 0:00:03]} 47. Kd2 {[%clk 0:01:02]}  Rb1 {[%clk 0:00:03]} 48. Kc2 {[%clk 0:01:02]}  Re1 {[%clk 0:00:02]} 49. Rf7+ {[%clk 0:01:01]}  Ke6 {[%clk 0:00:02]} 50. Rh7 {[%clk 0:01:01]}  Re4 {[%clk 0:00:03]} 51. Kd3 {[%clk 0:01:01]}  Kd6 {[%clk 0:00:03]} 52. Kc3 {[%clk 0:00:59]}  Re3+ {[%clk 0:00:03]} 53. Kb4 {[%clk 0:01:00]}  Rd3 {[%clk 0:00:03]} 54. Rh6+ {[%clk 0:00:59]}  Kc7 {[%clk 0:00:04]} 55. Kc5 {[%clk 0:00:58]}  Rc3+ {[%clk 0:00:03]} 56. Kb4 {[%clk 0:00:58]}  Rd3 {[%clk 0:00:04]} 57. Rh4 {[%clk 0:00:59]}  Kb6 {[%clk 0:00:04]} 58. Ka4 {[%clk 0:00:58]}  Re3 {[%clk 0:00:04]} 59. b4 {[%clk 0:00:58]}  Re4 {[%clk 0:00:04]} 60. Rxe4 {[%clk 0:00:53]}  dxe4 {[%clk 0:00:04]} 61. Kb3 {[%clk 0:00:53]}  Kb5 {[%clk 0:00:04]} 62. Kc3 {[%clk 0:00:54]}  Ka4 {[%clk 0:00:04]} 63. Kc4 {[%clk 0:00:52]}  Ka3 {[%clk 0:00:04]} 64. Kc3 {[%clk 0:00:51]}  Ka4 {[%clk 0:00:04]} 65. Kc4 {[%clk 0:00:51]}  e3 {[%clk 0:00:04]} 66. Kd3 {[%clk 0:00:50]}  Kxb4 {[%clk 0:00:04]} 67. Kxe3 {[%clk 0:00:51]}  Kb5 {[%clk 0:00:04]} 68. Ke4 {[%clk 0:00:51]}  Kb6 {[%clk 0:00:04]} 69. Ke5 {[%clk 0:00:52]}  Kc7 {[%clk 0:00:04]} 70. Ke6 {[%clk 0:00:53]}  c5 {[%clk 0:00:04]} 71. d5 {[%clk 0:00:51]}  Kd8 {[%clk 0:00:04]} 72. Ke5 {[%clk 0:00:50]}  Kd7 {[%clk 0:00:04]} 73. d6 {[%clk 0:00:51]}  c4 {[%clk 0:00:04]} 74. Kd4 {[%clk 0:00:51]}  c3 {[%clk 0:00:05]} 75. Kxc3 {[%clk 0:00:52]}  Kc6 {[%clk 0:00:06]} 76. d7 {[%clk 0:00:24]}  Kxd7 {[%clk 0:00:06]} 1/2-1/2


[Site "https://www.chess.com"]

[Event "Titled Tuesday Blitz August 22 Late 2023"]
[White "Henriquez Villagra, Cristobal"]
[Black "Ghazarian, Kirk"]
[WhiteFideId "3409350"]
[BlackFideId "30908604"]
[WhiteElo "2933"]
[BlackElo "2748"]
[Result "0-1"]
[Round "6"]
[TimeControl "180+1"]
[Date "2023.08.22"]
[WhiteClock "0:00:15"]
[BlackClock "0:00:06"]
[Board "21"]

1. g3 {[%clk 0:02:55]}  Nf6 {[%clk 0:02:58]} 2. Bg2 {[%clk 0:02:56]}  g6 {[%clk 0:02:59]} 3. Nf3 {[%clk 0:02:56]}  Bg7 {[%clk 0:03:00]} 4. O-O {[%clk 0:02:57]}  O-O {[%clk 0:03:01]} 5. d3 {[%clk 0:02:57]}  d6 {[%clk 0:03:01]} 6. c4 {[%clk 0:02:57]}  e5 {[%clk 0:03:00]} 7. Nc3 {[%clk 0:02:58]}  Nbd7 {[%clk 0:03:00]} 8. Rb1 {[%clk 0:02:57]}  a5 {[%clk 0:03:00]} 9. a3 {[%clk 0:02:57]}  c6 {[%clk 0:02:52]} 10. Ne1 {[%clk 0:02:45]}  Qc7 {[%clk 0:02:49]} 11. Nc2 {[%clk 0:02:45]}  Re8 {[%clk 0:02:44]} 12. b4 {[%clk 0:02:45]}  axb4 {[%clk 0:02:45]} 13. axb4 {[%clk 0:02:46]}  Nf8 {[%clk 0:02:40]} 14. b5 {[%clk 0:02:44]}  Bd7 {[%clk 0:02:37]} 15. Nb4 {[%clk 0:02:44]}  Ne6 {[%clk 0:02:34]} 16. h3 {[%clk 0:02:42]}  h5 {[%clk 0:02:20]} 17. Be3 {[%clk 0:02:37]}  Nd4 {[%clk 0:02:15]} 18. Nc2 {[%clk 0:02:16]}  Nf5 {[%clk 0:02:06]} 19. Bg5 {[%clk 0:02:16]}  Nh7 {[%clk 0:02:05]} 20. Bd2 {[%clk 0:02:16]}  Nf6 {[%clk 0:02:00]} 21. e3 {[%clk 0:02:08]}  Be6 {[%clk 0:01:54]} 22. Nb4 {[%clk 0:01:59]}  Ne7 {[%clk 0:01:51]} 23. Qe2 {[%clk 0:01:51]}  c5 {[%clk 0:01:37]} 24. Nc2 {[%clk 0:01:39]}  d5 {[%clk 0:01:33]} 25. e4 {[%clk 0:01:39]}  d4 {[%clk 0:01:23]} 26. Nd5 {[%clk 0:01:35]}  Bxd5 {[%clk 0:01:23]} 27. cxd5 {[%clk 0:01:33]}  Ra2 {[%clk 0:01:23]} 28. Rfc1 {[%clk 0:01:32]}  Qd6 {[%clk 0:01:13]} 29. Qd1 {[%clk 0:01:31]}  Rea8 {[%clk 0:01:07]} 30. Ne1 {[%clk 0:01:31]}  b6 {[%clk 0:01:04]} 31. Nf3 {[%clk 0:01:32]}  Ne8 {[%clk 0:01:03]} 32. Rc2 {[%clk 0:01:32]}  R2a3 {[%clk 0:01:01]} 33. Be1 {[%clk 0:01:27]}  Qd7 {[%clk 0:01:00]} 34. h4 {[%clk 0:01:27]}  Nd6 {[%clk 0:01:00]} 35. Rcb2 {[%clk 0:01:27]}  f5 {[%clk 0:00:57]} 36. Ng5 {[%clk 0:01:25]}  Bh6 {[%clk 0:00:51]} 37. Ne6 {[%clk 0:01:25]}  fxe4 {[%clk 0:00:51]} 38. dxe4 {[%clk 0:01:26]}  c4 {[%clk 0:00:40]} 39. Bb4 {[%clk 0:01:25]}  Nxb5 {[%clk 0:00:38]} 40. Bxa3 {[%clk 0:01:16]}  Nc3 {[%clk 0:00:23]} 41. Qf1 {[%clk 0:01:12]}  Rxa3 {[%clk 0:00:23]} 42. Qxc4 {[%clk 0:01:11]}  Nxb1 {[%clk 0:00:22]} 43. Rxb1 {[%clk 0:01:12]}  Rc3 {[%clk 0:00:18]} 44. Qa6 {[%clk 0:01:12]}  Nc8 {[%clk 0:00:17]} 45. Bh3 {[%clk 0:01:11]}  Qf7 {[%clk 0:00:13]} 46. Ng5 {[%clk 0:01:03]}  Qf8 {[%clk 0:00:12]} 47. Be6+ {[%clk 0:01:00]}  Kh8 {[%clk 0:00:12]} 48. Nf7+ {[%clk 0:01:00]}  Kg7 {[%clk 0:00:13]} 49. Qb7 {[%clk 0:00:43]}  Qe7 {[%clk 0:00:13]} 50. Qb8 {[%clk 0:00:43]}  d3 {[%clk 0:00:10]} 51. Bxc8 {[%clk 0:00:39]}  Qxf7 {[%clk 0:00:08]} 52. Be6 {[%clk 0:00:39]}  Qf8 {[%clk 0:00:09]} 53. Qxb6 {[%clk 0:00:37]}  d2 {[%clk 0:00:08]} 54. Qc7+ {[%clk 0:00:15]}  Rxc7 {[%clk 0:00:06]} 0-1


[Site "https://www.chess.com"]